bitfinex-derivatives/quotes_BTCF0:USTF0_20210708
["timestamp","ask_amount","ask_price","bid_price","bid_amount"]
[1625715058862,0.32834582,33203.0,33195.0,0.0906]
[1625715059013,0.24057544,33203.0,33195.0,0.0906]
[1625715059163,0.23707544,33203.0,33202.0,0.48115088]
[1625715059314,0.003,33207.0,33202.0,0.83825088]
[1625715060294,0.003,33207.0,33202.0,0.92755088]
[1625715060453,0.003,33207.0,33203.0,0.0912]
[1625715061206,0.24357544,33207.0,33206.0,0.24057544]
[1625715061792,0.24357544,33207.0,33206.0,4.30417544]
[1625715062169,0.24357544,33207.0,33206.0,4.36117544]
[1625715067121,0.003,33207.0,33206.0,4.36117544]
[1625715067273,0.15057544,33211.0,33206.0,4.36117544]
[1625715067872,0.09057544,33211.0,33206.0,4.36117544]
[1625715068025,0.21457544,33217.0,33206.0,4.36117544]
[1625715068474,0.21457544,33217.0,33207.0,0.0905]
[1625715069299,0.21457544,33217.0,33216.0,0.24057544]
[1625715070351,1.26623805,33217.0,33216.0,0.24057544]
[1625715070803,1.26623805,33217.0,33207.0,0.0905]
[1625715070804,5.86493805,33217.0,33207.0,0.0905]
[1625715070955,5.86493805,33217.0,33206.0,4.36117544]
[1625715070956,1.05128044,33216.0,33206.0,4.30417544]
[1625715071252,0.24057544,33207.0,33206.0,4.54475088]
[1625715071402,0.46194544,33207.0,33206.0,4.54475088]
[1625715072457,0.46194544,33207.0,33206.0,4.60175088]
[1625715072603,0.24057544,33207.0,33206.0,4.60175088]
[1625715074935,0.24057544,33210.0,33206.0,4.60175088]
[1625715075084,0.24057544,33210.0,33207.0,0.0901]
[1625715075234,0.24057544,33210.0,33207.0,0.33067544]
[1625715075384,0.24057544,33210.0,33207.0,0.38767544]
[1625715079668,0.001,33211.0,33207.0,0.38767544]
[1625715081095,0.001,33211.0,33208.0,0.00414799]
[1625715081245,0.001,33211.0,33210.0,0.24057544]
[1625715081402,0.001,33211.0,33210.0,0.29757544]
[1625715086283,0.001,33211.0,33210.0,0.3017232]
[1625715088690,0.001,33211.0,33210.0,1.00058481]
[1625715089441,0.001,33215.0,33210.0,1.00058481]
[1625715089591,0.001,33215.0,33211.0,0.0891]
[1625715090191,0.50776024,33219.0,33218.0,4.3978]
[1625715090343,0.50776024,33219.0,33218.0,4.73767]
[1625715091321,0.50776024,33219.0,33218.0,5.21882088]
[1625715094402,1.0559208,33221.0,33218.0,5.21882088]
[1625715094552,1.0559208,33221.0,33218.0,5.22296825]
[1625715095227,1.0559208,33221.0,33219.0,0.057]
[1625715095377,1.29434175,33222.0,33219.0,0.057]
[1625715095527,1.29434175,33222.0,33219.0,0.1473]
[1625715097331,0.24057544,33222.0,33219.0,0.15143421]
[1625715098082,0.24057544,33222.0,33220.0,0.00413421]
[1625715098909,0.23757544,33222.0,33220.0,0.00413421]
[1625715099377,1.05355225,33223.0,33220.0,0.00413421]
[1625715099378,1.05355225,33223.0,33221.0,0.24057544]
[1625715099523,1.0545224,33224.0,33221.0,0.24057544]
[1625715099809,1.05353153,33223.0,33221.0,0.24057544]
[1625715100185,1.05452813,33224.0,33221.0,0.24057544]
[1625715100485,1.05391306,33223.0,33221.0,0.24057544]
[1625715101385,0.001,33224.0,33221.0,0.24057544]
[1625715101386,1.29536154,33224.0,33221.0,0.24057544]
[1625715102362,1.05409027,33223.0,33222.0,0.0041362]
[1625715103412,1.29555469,33224.0,33222.0,0.0041362]
[1625715104616,1.29555469,33224.0,33223.0,0.0889]
[1625715105062,1.29555469,33224.0,33222.0,0.0041362]
[1625715105363,1.29455469,33224.0,33223.0,0.24057544]
[1625715105663,2.52446111,33224.0,33223.0,0.24057544]
[1625715106863,1.29455469,33224.0,33223.0,0.24057544]
[1625715107613,2.5249312,33224.0,33223.0,0.24057544]
[1625715108063,1.29455469,33224.0,33223.0,0.33087544]
[1625715108214,1.29455469,33224.0,33223.0,0.63353544]
[1625715108364,1.05397925,33224.0,33223.0,0.63353544]
[1625715108513,1.05498463,33225.0,33223.0,0.63353544]
[1625715108664,1.05498463,33225.0,33224.0,4.8903]
[1625715108965,0.52755756,33225.0,33224.0,4.8903]
[1625715109491,0.52755756,33225.0,33224.0,5.18787544]
[1625715110239,0.52755756,33225.0,33224.0,5.13087544]
[1625715110993,0.52755756,33225.0,33224.0,5.18787544]
[1625715111594,0.52772707,33226.0,33224.0,5.18787544]
[1625715111969,0.52804034,33225.0,33224.0,5.18787544]
[1625715112270,0.5280341,33226.0,33224.0,5.18787544]
[1625715112421,0.5280341,33226.0,33224.0,5.13087544]
[1625715112722,0.5279319,33225.0,33224.0,5.13087544]
[1625715115277,0.53918788,33226.0,33224.0,5.18787544]
[1625715115454,0.001,33228.0,33225.0,0.25285524]
[1625715115588,1.41439835,33242.0,33226.0,0.057]
[1625715115802,1.231601,33254.0,33241.0,4.51444156]
[1625715115982,1.02583977,33259.0,33242.0,0.5]
[1625715116144,0.52756608,33267.0,33258.0,0.35192699]
[1625715116256,1.40654989,33272.0,33259.0,0.5]
[1625715116441,0.52786232,33278.0,33266.0,5.67369532]
[1625715116601,0.0888,33311.0,33277.0,0.35192699]
[1625715116718,0.0888,33311.0,33278.0,0.057]
[1625715116719,0.52396251,33297.0,33278.0,0.057]
[1625715116852,0.52396251,33297.0,33296.0,4.4624]
[1625715117002,1.39684986,33305.0,33296.0,4.70128]
[1625715117152,0.52384927,33305.0,33296.0,4.70128]
[1625715117308,1.04752398,33307.0,33296.0,4.710293]
[1625715117519,0.52377067,33314.0,33306.0,0.96230176]
[1625715117683,1.39643089,33319.0,33306.0,1.21713176]
[1625715117684,0.52372173,33318.0,33306.0,1.21713176]
[1625715117827,0.52372173,33318.0,33306.0,1.27413176]
[1625715117977,0.52372173,33318.0,33307.0,0.448098]
[1625715118129,1.57081616,33326.0,33307.0,0.448098]
[1625715118130,0.52367687,33320.0,33315.0,4.6124]
[1625715118278,0.52367687,33320.0,33315.0,4.88898]
[1625715118429,0.46475066,33322.0,33315.0,4.88898]
[1625715118580,1.57090294,33331.0,33315.0,4.88898]
[1625715118730,0.51961088,33339.0,33315.0,4.88898]
[1625715118879,0.51957778,33336.0,33315.0,4.88898]
[1625715119184,0.24057544,33341.0,33315.0,4.88898]
[1625715119480,0.51950926,33343.0,33315.0,0.27658]
[1625715119481,0.48115088,33316.0,33315.0,0.27658]
[1625715119786,0.48115088,33316.0,33309.0,1.1684524]
[1625715119787,0.48115088,33316.0,33311.0,1.00289987]
[1625715119932,0.48115088,33316.0,33310.0,1.0035188]
[1625715120080,0.48115088,33316.0,33308.0,1.17077193]
[1625715120232,0.48115088,33316.0,33309.0,0.17478091]
[1625715120380,0.48115088,33316.0,33307.0,1.19125509]
[1625715120530,1.0,33312.0,33309.0,0.50291282]
[1625715120680,1.0,33312.0,33306.0,0.50363903]
[1625715120830,1.0,33312.0,33306.0,0.00343903]
[1625715120980,1.0,33312.0,33302.0,0.00431757]
[1625715121130,1.0,33307.0,33302.0,0.00431757]
[1625715121290,0.98115088,33316.0,33299.0,0.50516957]
[1625715121431,1.0,33303.0,33299.0,0.50516957]
[1625715121583,0.96230176,33300.0,33297.0,0.50540131]
[1625715121892,0.96230176,33300.0,33289.0,1.51620393]
[1625715122182,4.7796,33318.0,33289.0,1.51620393]
[1625715122333,4.7796,33318.0,33302.0,0.35366497]
[1625715122489,4.7796,33318.0,33307.0,0.50310347]
[1625715122785,4.7796,33318.0,33309.0,0.50245737]
[1625715122933,4.7796,33318.0,33309.0,0.2605]
[1625715123535,0.72172632,33310.0,33309.0,0.2605]
[1625715123985,0.72172632,33310.0,33303.0,1.00655464]
[1625715124439,0.72172632,33310.0,33302.0,1.00657393]
[1625715124739,0.72172632,33310.0,33301.0,1.00357893]
[1625715125487,0.48115088,33302.0,33301.0,1.00357893]
[1625715125862,0.48115088,33302.0,33300.0,1.0041766]
[1625715125863,0.25417,33302.0,33300.0,1.0041766]
[1625715126163,0.25417,33302.0,33298.0,0.24057544]
[1625715126313,4.30862464,33299.0,33298.0,1.41413671]
[1625715126912,4.30862464,33299.0,33298.0,0.24257544]
[1625715127362,4.63771464,33299.0,33298.0,0.24257544]
[1625715127513,5.11886552,33299.0,33298.0,0.24257544]
[1625715129917,5.11886552,33299.0,33288.0,1.34242514]
[1625715130070,5.11886552,33299.0,33288.0,0.004]
[1625715130595,4.76513799,33299.0,33288.0,0.004]
[1625715132321,4.76513799,33299.0,33297.0,0.002]
[1625715133447,1.0,33298.0,33297.0,0.002]
[1625715133597,1.74057544,33298.0,33297.0,0.002]
[1625715135485,0.74057544,33298.0,33297.0,0.002]
[1625715135627,1.74057544,33298.0,33297.0,0.002]
[1625715136300,0.74057544,33298.0,33297.0,0.002]
[1625715136450,1.74057544,33298.0,33297.0,0.002]
[1625715136753,1.24057544,33298.0,33297.0,0.002]
[1625715136901,0.24057544,33298.0,33297.0,0.002]
[1625715137673,0.24057544,33298.0,33297.0,0.48315088]
[1625715138252,0.24057544,33298.0,33297.0,0.48115088]
[1625715138406,3.48813899,33299.0,33297.0,0.48115088]
[1625715138553,3.48813899,33299.0,33297.0,0.70725088]
[1625715138704,3.13449362,33299.0,33297.0,0.70725088]
[1625715139154,0.001,33304.0,33297.0,0.70725088]
[1625715139464,4.7796,33318.0,33297.0,0.70725088]
[1625715139609,0.24057544,33314.0,33312.0,0.24057544]
[1625715139777,0.24057544,33314.0,33312.0,0.45958544]
[1625715144257,4.6796,33318.0,33312.0,0.45958544]
[1625715145766,4.6796,33318.0,33317.0,0.24057544]
[1625715145916,0.24057544,33320.0,33317.0,0.24057544]
[1625715146508,0.24057544,33325.0,33317.0,0.24057544]
[1625715147265,0.057,33369.0,33317.0,0.24057544]
[1625715147415,0.001,33320.0,33318.0,0.057]
[1625715147562,0.001,33320.0,33317.0,0.24057544]
[1625715147711,0.001,33320.0,33319.0,0.48115088]
[1625715147860,0.002,33325.0,33319.0,0.74902088]
[1625715148010,0.24057544,33343.0,33319.0,0.74902088]
[1625715148160,0.24057544,33343.0,33320.0,0.057]
[1625715149534,0.24057544,33350.0,33320.0,0.057]
[1625715149662,0.24057544,33350.0,33349.0,0.48115088]
[1625715149812,0.24057544,33350.0,33349.0,0.78791088]
[1625715151166,0.24057544,33350.0,33349.0,0.48115088]
[1625715151764,0.24057544,33350.0,33344.0,0.24057544]
[1625715151911,0.49772544,33350.0,33344.0,0.24057544]
[1625715153789,0.24057544,33345.0,33344.0,0.24057544]
[1625715156284,0.24057544,33350.0,33344.0,0.24057544]
[1625715156432,0.24057544,33350.0,33344.0,0.46985544]
[1625715157469,0.24057544,33350.0,33344.0,0.52685544]
[1625715157768,0.24057544,33350.0,33349.0,0.48115088]
[1625715159114,0.24057544,33357.0,33349.0,0.48115088]
[1625715159716,0.24057544,33357.0,33356.0,0.24057544]
[1625715159866,0.24057544,33357.0,33356.0,0.49610544]
[1625715161366,0.24057544,33357.0,33356.0,0.24057544]
[1625715161816,0.24057544,33363.0,33356.0,0.48115088]
[1625715162872,0.24057544,33367.0,33356.0,0.53815088]
[1625715163842,0.24057544,33367.0,33366.0,0.48115088]
[1625715163992,0.24057544,33367.0,33366.0,0.80016088]
[1625715164311,0.24057544,33371.0,33366.0,0.80016088]
[1625715164640,0.24057544,33375.0,33366.0,0.80016088]
[1625715165793,0.24057544,33379.0,33374.0,0.48115088]
[1625715166846,0.68204311,33415.0,33374.0,0.71098088]
[1625715166995,0.64515412,33415.0,33374.0,0.76798088]
[1625715167156,1.79354798,33428.0,33374.0,0.76798088]
[1625715167157,1.0,33409.0,33374.0,0.76798088]
[1625715167445,0.9671,33414.0,33374.0,0.76798088]
[1625715167745,1.0,33409.0,33395.0,0.24057544]
[1625715167896,0.24057544,33396.0,33395.0,0.24057544]
[1625715168497,0.24057544,33396.0,33388.0,0.24057544]
[1625715168647,0.24057544,33396.0,33374.0,0.24057544]
[1625715168797,1.45789544,33396.0,33374.0,0.24057544]
[1625715169097,0.45789544,33396.0,33374.0,0.24057544]
[1625715169251,5.13049544,33396.0,33374.0,0.24057544]
[1625715169401,1.0,33388.0,33374.0,0.24057544]
[1625715169550,1.32362,33388.0,33374.0,0.24057544]
[1625715169851,0.24057544,33380.0,33379.0,0.24057544]
[1625715170000,0.24057544,33380.0,33367.0,0.9201]
[1625715170001,1.51628544,33380.0,33367.0,0.9201]
[1625715170151,0.51628544,33380.0,33367.0,0.9201]
[1625715170602,1.0,33377.0,33367.0,0.9201]
[1625715170753,1.0,33374.0,33367.0,0.9201]
[1625715171355,4.8828,33370.0,33367.0,0.9201]
[1625715171506,5.22824,33370.0,33356.0,0.001]
[1625715171652,1.0,33368.0,33356.0,0.001]
[1625715171808,0.48115088,33357.0,33356.0,0.24157544]
[1625715171953,0.72342088,33357.0,33356.0,0.24157544]
[1625715173611,0.72342088,33357.0,33356.0,0.001]
[1625715173905,0.96399632,33357.0,33356.0,0.001]
[1625715174244,1.96399632,33357.0,33356.0,0.001]
[1625715174655,2.46399632,33357.0,33356.0,0.001]
[1625715175256,1.96399632,33357.0,33356.0,0.001]
[1625715176156,0.96399632,33357.0,33356.0,0.001]
[1625715176306,0.72172632,33357.0,33356.0,0.001]
[1625715177512,1.72172632,33357.0,33356.0,0.001]
[1625715177659,2.22172632,33357.0,33356.0,0.001]
[1625715178859,1.72172632,33357.0,33356.0,0.001]
[1625715179159,0.72172632,33357.0,33356.0,0.001]
[1625715180544,1.00314632,33357.0,33356.0,0.001]
[1625715180700,2.00314632,33357.0,33356.0,0.001]
[1625715180840,1.00314632,33357.0,33356.0,0.001]
[1625715184122,0.72172632,33357.0,33356.0,0.001]
[1625715184574,0.96865632,33357.0,33356.0,0.001]
[1625715184721,1.96865632,33357.0,33356.0,0.001]
[1625715185023,0.96865632,33357.0,33356.0,0.001]
[1625715186673,1.96865632,33357.0,33356.0,0.001]
[1625715186973,0.96865632,33357.0,33356.0,0.001]
[1625715187125,1.96865632,33357.0,33356.0,0.001]
[1625715187875,2.46865632,33357.0,33356.0,0.001]
[1625715188924,1.46865632,33357.0,33356.0,0.001]
[1625715189224,2.46865632,33357.0,33356.0,0.001]
[1625715189826,1.46865632,33357.0,33356.0,0.001]
[1625715189975,2.46865632,33357.0,33356.0,0.001]
[1625715190275,4.3691,33342.0,33333.0,0.9493]
[1625715190427,0.5,33341.0,33333.0,0.9493]
[1625715190725,1.0,33335.0,33333.0,0.9493]
[1625715190875,0.726,33335.0,33327.0,0.50628374]
[1625715191025,1.0,33334.0,33327.0,0.50628374]
[1625715191176,1.0,33334.0,33323.0,1.18105086]
[1625715191177,0.5,33333.0,33326.0,0.50672097]
[1625715191326,0.5,33333.0,33323.0,0.56424712]
[1625715191626,0.5,33333.0,33323.0,0.22608237]
[1625715191777,1.0,33328.0,33323.0,0.057]
[1625715191927,0.72172632,33324.0,33323.0,0.057]
[1625715192077,0.72172632,33324.0,33321.0,0.50775901]
[1625715193281,0.72172632,33324.0,33323.0,0.16933076]
[1625715193582,0.72172632,33324.0,33322.0,0.50802096]
[1625715193728,1.0,33337.0,33322.0,0.50802096]
[1625715193959,0.24057544,33338.0,33336.0,0.24057544]
[1625715194116,0.24057544,33338.0,33336.0,0.54445544]
[1625715195080,0.24057544,33338.0,33337.0,0.16895821]
[1625715195381,0.24057544,33338.0,33336.0,0.54445544]
[1625715195531,0.24057544,33338.0,33337.0,1.0128782]
[1625715196507,0.24057544,33345.0,33337.0,1.0128782]
[1625715196658,0.24057544,33345.0,33337.0,1.0698782]
[1625715196809,0.24057544,33345.0,33344.0,0.16900006]
[1625715196959,0.24057544,33345.0,33344.0,0.22624]
[1625715197709,0.24057544,33345.0,33344.0,1.23971071]
[1625715198010,0.24057544,33349.0,33344.0,1.23971071]
[1625715198011,0.24057544,33349.0,33344.0,0.70739088]
[1625715198160,0.24057544,33349.0,33346.0,0.50670155]
[1625715198460,0.005,33348.0,33347.0,0.1688785]
[1625715198610,0.005,33348.0,33347.0,0.338049]
[1625715199060,0.005,33348.0,33347.0,0.395049]
[1625715199209,0.005,33348.0,33347.0,0.56408399]
[1625715199361,0.005,33348.0,33347.0,0.057]
[1625715199963,0.005,33348.0,33347.0,0.3951411]
[1625715200336,0.005,33348.0,33347.0,0.5642143]
[1625715200635,0.005,33348.0,33347.0,0.3951411]
[1625715200935,0.005,33348.0,33347.0,0.56438218]
[1625715201162,0.005,33348.0,33347.0,0.057]
[1625715201612,0.005,33348.0,33347.0,0.22631844]
[1625715202214,0.005,33348.0,33347.0,0.56491463]
[1625715202890,0.005,33348.0,33347.0,0.39559619]
[1625715203789,0.005,33348.0,33347.0,0.057]
[1625715203939,0.005,33348.0,33347.0,0.29757544]
[1625715204541,0.005,33348.0,33347.0,1.31501045]
[1625715204990,0.24057544,33352.0,33347.0,1.31501045]
[1625715205291,0.24057544,33352.0,33350.0,1.01679615]
[1625715205442,0.24057544,33352.0,33351.0,0.057]
[1625715205592,0.24057544,33355.0,33351.0,0.39601899]
[1625715205891,0.24057544,33355.0,33352.0,0.16958999]
[1625715206044,0.24057544,33355.0,33354.0,0.48115088]
[1625715206192,0.24057544,33355.0,33354.0,0.53815088]
[1625715206492,0.34978288,33362.0,33354.0,0.53815088]
[1625715207243,0.59035858,33363.0,33354.0,0.53815088]
[1625715207394,0.002,33358.0,33354.0,0.53815088]
[1625715207544,0.002,33358.0,33354.0,1.04715365]
[1625715207995,0.002,33358.0,33355.0,0.24057544]
[1625715208147,0.002,33358.0,33356.0,0.057]
[1625715208748,0.002,33358.0,33356.0,1.07460042]
[1625715209799,0.002,33358.0,33357.0,1.01787874]
[1625715209951,0.002,33358.0,33357.0,1.33537874]
[1625715210549,0.002,33358.0,33357.0,2.52217045]
[1625715210702,0.002,33358.0,33357.0,3.87815818]
[1625715211002,0.003,33363.0,33357.0,5.40232627]
[1625715211150,0.003,33363.0,33357.0,10.47852627]
[1625715211300,0.003,33363.0,33362.0,2.20114555]
[1625715211452,0.003,33363.0,33362.0,2.25814555]
[1625715211600,0.003,33363.0,33362.0,3.61187343]
[1625715212089,0.004,33368.0,33362.0,5.8539978]
[1625715212374,0.004,33368.0,33367.0,3.54500391]
[1625715212513,0.004,33368.0,33367.0,2.54007623]
[1625715213254,0.24057544,33380.0,33367.0,1.35840826]
[1625715213478,0.24057544,33380.0,33367.0,0.56461098]
[1625715213479,0.34954233,33377.0,33367.0,0.56461098]
[1625715213627,0.69398233,33377.0,33367.0,0.56461098]
[1625715213779,0.69398233,33377.0,33367.0,0.057]
[1625715213929,0.34946905,33374.0,33367.0,0.057]
[1625715214083,0.34946905,33374.0,33373.0,0.24057544]
[1625715214227,0.34946905,33374.0,33373.0,0.29757544]
[1625715214378,0.87358003,33375.0,33373.0,0.29757544]
[1625715214529,0.87357413,33377.0,33373.0,0.29757544]
[1625715214827,0.87355683,33378.0,33373.0,0.24057544]
[1625715215130,0.87357485,33377.0,33373.0,0.24057544]
[1625715215277,0.87359958,33376.0,33373.0,0.24057544]
[1625715215579,0.34947956,33375.0,33373.0,0.24057544]
[1625715215728,0.34941929,33376.0,33373.0,0.24057544]
[1625715215878,0.34941929,33376.0,33374.0,0.057]
[1625715216028,0.24057544,33376.0,33374.0,0.057]
[1625715216253,0.24057544,33376.0,33373.0,0.24057544]
[1625715216553,0.58999803,33376.0,33373.0,0.24057544]
[1625715217304,0.92602803,33376.0,33373.0,0.24057544]
[1625715217455,0.3494265,33375.0,33373.0,0.24057544]
[1625715217754,0.87343365,33375.0,33373.0,0.24057544]
[1625715218057,0.24057544,33375.0,33373.0,0.24057544]
[1625715218504,0.34940309,33374.0,33373.0,0.24057544]
[1625715219855,0.52402941,33374.0,33373.0,0.24057544]
[1625715220013,0.52402941,33374.0,33372.0,0.001]
[1625715220156,0.24057544,33373.0,33372.0,0.001]
[1625715220456,3.03523355,33373.0,33372.0,0.001]
[1625715221058,4.03523355,33373.0,33372.0,0.001]
[1625715221210,5.43242322,33373.0,33372.0,0.001]
[1625715221509,5.93242322,33373.0,33372.0,0.001]
[1625715221959,7.50463675,33373.0,33367.0,0.002]
[1625715222110,0.48115088,33368.0,33367.0,0.002]
[1625715222258,3.49245815,33368.0,33367.0,0.002]
[1625715222412,4.49245815,33368.0,33367.0,0.002]
[1625715222559,4.99245815,33368.0,33367.0,0.002]
[1625715222710,4.49245815,33368.0,33367.0,0.002]
[1625715223010,3.49245815,33368.0,33367.0,0.002]
[1625715223163,2.26958768,33368.0,33367.0,0.002]
[1625715224213,1.57086458,33368.0,33367.0,0.002]
[1625715224512,0.69720088,33368.0,33367.0,0.002]
[1625715224661,0.48115088,33368.0,33367.0,0.002]
[1625715224961,0.83056086,33368.0,33367.0,0.002]
[1625715225263,0.48115088,33368.0,33367.0,0.002]
[1625715225798,0.83061212,33368.0,33367.0,0.002]
[1625715225951,2.16599587,33368.0,33367.0,0.002]
[1625715226275,3.87982549,33368.0,33367.0,0.002]
[1625715226422,6.5002081,33368.0,33367.0,0.002]
[1625715226550,6.48504019,33368.0,33367.0,0.002]
[1625715226842,6.48504019,33368.0,33357.0,0.004]
[1625715227155,0.52425292,33358.0,33357.0,0.004]
[1625715227306,2.24543292,33358.0,33357.0,0.004]
[1625715227444,3.99277969,33358.0,33357.0,0.004]
[1625715227744,3.49277969,33358.0,33357.0,0.004]
[1625715228194,3.21450601,33358.0,33357.0,0.004]
[1625715228348,3.66613289,33358.0,33356.0,0.003]
[1625715228494,0.87400101,33357.0,33356.0,0.003]
[1625715228644,1.37400101,33357.0,33356.0,0.003]
[1625715228795,2.77346958,33357.0,33356.0,0.003]
[1625715228945,3.27346958,33357.0,33356.0,0.003]
[1625715229094,2.27346958,33357.0,33356.0,0.003]
[1625715229849,3.27346958,33357.0,33356.0,0.003]
[1625715230148,2.51404502,33357.0,33356.0,0.003]
[1625715230823,1.46461764,33357.0,33356.0,0.003]
[1625715231123,0.76558592,33357.0,33356.0,0.003]
[1625715231424,1.4651881,33357.0,33356.0,0.003]
[1625715231575,2.51474981,33357.0,33356.0,0.003]
[1625715231874,0.76543442,33357.0,33356.0,0.003]
[1625715232024,1.11544005,33357.0,33356.0,0.003]
[1625715232325,0.41565964,33357.0,33356.0,0.003]
[1625715232626,0.24057544,33357.0,33356.0,0.003]
[1625715233226,0.24057544,33357.0,33356.0,0.51158592]
[1625715233374,0.24057544,33357.0,33356.0,0.56858592]
[1625715233526,0.24057544,33357.0,33356.0,0.90756995]
[1625715233674,0.24057544,33357.0,33356.0,1.46707927]
[1625715234125,0.24057544,33357.0,33356.0,1.70765471]
[1625715235024,0.52490749,33366.0,33356.0,1.70765471]
[1625715235174,0.17504841,33365.0,33356.0,1.02970811]
[1625715235326,0.52492033,33366.0,33357.0,0.50854999]
[1625715235475,0.52492033,33366.0,33358.0,0.057]
[1625715235625,0.17506461,33365.0,33358.0,0.057]
[1625715236152,0.76551212,33366.0,33364.0,0.24057544]
[1625715236600,0.76551212,33366.0,33364.0,0.50878544]
[1625715237274,0.76551212,33366.0,33364.0,0.26821]
[1625715237427,0.52494888,33365.0,33364.0,0.26821]
[1625715237575,0.52494888,33365.0,33360.0,0.057]
[1625715238026,0.74849888,33365.0,33359.0,0.24057544]
[1625715238180,0.24057544,33360.0,33359.0,0.24057544]
[1625715238489,0.76566708,33360.0,33359.0,0.24057544]
[1625715238628,1.26566708,33360.0,33359.0,0.24057544]
[1625715238781,4.01511671,33360.0,33359.0,0.24057544]
[1625715239304,2.51511671,33360.0,33359.0,0.24057544]
[1625715239604,4.73998484,33360.0,33359.0,0.24057544]
[1625715239754,5.23998484,33360.0,33356.0,0.24057544]
[1625715239906,5.23998484,33360.0,33355.0,0.001]
[1625715240207,2.75631391,33356.0,33355.0,0.001]
[1625715240355,3.60075391,33356.0,33355.0,0.001]
[1625715240505,9.06693966,33356.0,33355.0,0.001]
[1625715240732,11.46697078,33356.0,33355.0,0.001]
[1625715241633,10.96697078,33356.0,33355.0,0.001]
[1625715242086,10.06693966,33356.0,33355.0,0.001]
[1625715243133,8.56693966,33356.0,33355.0,0.001]
[1625715243285,5.32573966,33356.0,33355.0,0.001]
[1625715243446,4.32573966,33356.0,33355.0,0.001]
[1625715243583,1.70074556,33356.0,33355.0,0.001]
[1625715243733,1.35630556,33356.0,33355.0,0.001]
[1625715243887,0.48115088,33356.0,33355.0,0.001]
[1625715244048,1.48115088,33356.0,33355.0,0.001]
[1625715244335,2.00616936,33356.0,33355.0,0.001]
[1625715244485,2.32401936,33356.0,33355.0,0.001]
[1625715244636,3.02398576,33356.0,33355.0,0.001]
[1625715244794,4.07388958,33356.0,33355.0,0.001]
[1625715245249,8.28688958,33356.0,33355.0,0.001]
[1625715245441,8.78688958,33356.0,33355.0,0.001]
[1625715245537,11.41193478,33356.0,33355.0,0.001]
[1625715246288,12.98683406,33356.0,33354.0,0.001]
[1625715246441,4.89971185,33355.0,33354.0,0.001]
[1625715246590,5.39971185,33355.0,33354.0,0.001]
[1625715246891,6.39971185,33355.0,33354.0,0.001]
[1625715247041,7.97459507,33355.0,33349.0,0.002]
[1625715247190,6.97459507,33355.0,33349.0,0.002]
[1625715247340,7.97459507,33355.0,33349.0,0.002]
[1625715247490,1.0,33350.0,33349.0,0.002]
[1625715247641,7.97565996,33350.0,33349.0,0.002]
[1625715248243,8.45681084,33350.0,33349.0,0.002]
[1625715249298,8.45681084,33350.0,33344.0,0.003]
[1625715249444,10.20631304,33350.0,33349.0,0.002]
[1625715249742,9.20631304,33350.0,33349.0,0.002]
[1625715250191,10.20631304,33350.0,33349.0,0.002]
[1625715252293,10.20631304,33350.0,33344.0,0.003]
[1625715252445,10.20631304,33350.0,33349.0,0.002]
[1625715252595,3.73065308,33350.0,33349.0,0.002]
[1625715252745,10.20053705,33350.0,33349.0,0.002]
[1625715255308,10.20053705,33350.0,33348.0,0.001]
[1625715255596,6.46882562,33349.0,33348.0,0.001]
[1625715255746,6.96882562,33349.0,33348.0,0.001]
[1625715256272,8.20940106,33349.0,33348.0,0.001]
[1625715256873,6.63598325,33349.0,33348.0,0.001]
[1625715257023,5.23737022,33349.0,33348.0,0.001]
[1625715257325,4.01356197,33349.0,33348.0,0.001]
[1625715258298,2.9645585,33349.0,33348.0,0.001]
[1625715259357,1.4645585,33349.0,33348.0,0.001]
[1625715259518,0.41534865,33349.0,33348.0,0.001]
[1625715259952,0.24057544,33349.0,33348.0,0.001]
[1625715264309,0.24057544,33349.0,33348.0,0.24157544]
[1625715264909,0.24057544,33349.0,33348.0,0.001]
[1625715265962,0.74057544,33349.0,33348.0,0.001]
[1625715266110,1.74057544,33349.0,33348.0,0.001]
[1625715266336,1.98115088,33349.0,33348.0,0.001]
[1625715266486,2.50517082,33349.0,33348.0,0.001]
[1625715266711,3.20346153,33349.0,33348.0,0.001]
[1625715266937,4.25111581,33349.0,33348.0,0.001]
[1625715267540,1.98115088,33349.0,33348.0,0.001]
[1625715267689,4.25087662,33349.0,33348.0,0.001]
[1625715267989,4.26609798,33349.0,33348.0,0.001]
[1625715268302,3.76609798,33349.0,33347.0,0.001]
[1625715268469,4.26609798,33349.0,33347.0,0.001]
[1625715268743,2.22218113,33348.0,33347.0,0.001]
[1625715268907,1.17471294,33348.0,33347.0,0.001]
[1625715269196,1.0,33348.0,33347.0,0.001]
[1625715269649,1.5,33348.0,33347.0,0.001]
[1625715270091,2.02379617,33348.0,33347.0,0.001]
[1625715270241,1.02379617,33348.0,33347.0,0.001]
[1625715270540,2.72218957,33348.0,33347.0,0.001]
[1625715270691,3.76973082,33348.0,33347.0,0.001]
[1625715271151,2.02379617,33348.0,33347.0,0.001]
[1625715271376,2.02398588,33348.0,33347.0,0.001]
[1625715271965,1.87329841,33348.0,33347.0,0.001]
[1625715272126,0.87329841,33348.0,33347.0,0.001]
[1625715272419,0.5240776,33348.0,33347.0,0.001]
[1625715272869,1.87334133,33348.0,33347.0,0.001]
[1625715273018,0.87334133,33348.0,33347.0,0.001]
[1625715273169,2.22280646,33348.0,33347.0,0.001]
[1625715273396,1.52424661,33348.0,33347.0,0.001]
[1625715273768,0.52424661,33348.0,33347.0,0.001]
[1625715273918,2.56702733,33348.0,33347.0,0.001]
[1625715274068,3.61553293,33348.0,33347.0,0.001]
[1625715274217,4.11553293,33348.0,33347.0,0.001]
[1625715274369,5.33884178,33348.0,33347.0,0.001]
[1625715274819,4.83884178,33348.0,33347.0,0.001]
[1625715274972,3.61553293,33348.0,33347.0,0.001]
[1625715275271,4.11553293,33348.0,33347.0,0.001]
[1625715275570,3.11553293,33348.0,33347.0,0.001]
[1625715275721,5.33936322,33348.0,33347.0,0.001]
[1625715275871,4.83936322,33348.0,33347.0,0.001]
[1625715276023,3.61553293,33348.0,33347.0,0.001]